fUSD/lending_fUSD_20240516
["ID","MTS","AMOUNT","RATE_DAILY","PERIOD"]
[327206701,1715898657401,-673.71,0.00011948,2]
[327206702,1715898657411,-906.15,0.00011948,2]
[327206703,1715898657421,-676.79,0.00011948,2]
[327206704,1715898657435,-721.59,0.00011948,2]
[327206705,1715898657444,-594.73,0.00011948,2]
[327206706,1715898657454,-793.2,0.00011948,2]
[327206707,1715898657464,-1329.35,0.00011948,2]
[327206708,1715898657474,-1301.06,0.00011948,2]
[327206709,1715898657484,-713.75,0.00011948,2]
[327206710,1715898657494,-953.53,0.00011948,2]
[327206711,1715898657505,-1231.03,0.00011948,2]
[327206712,1715898657516,-500.0,0.00011948,2]
[327206713,1715898657526,-625.83,0.00011948,2]
[327206714,1715898657536,-634.96,0.00011948,2]
[327206715,1715898657546,-560.23,0.00011948,2]
[327206716,1715898657556,-1051.92,0.00011948,2]
[327206717,1715898657566,-577.5,0.00011948,2]
[327206718,1715898657575,-500.0,0.00011948,2]
[327206719,1715898657585,-500.0,0.00011948,2]
[327206720,1715898657594,-1776.01,0.00011948,2]
[327206721,1715898657604,-725.43,0.00011948,2]
[327206722,1715898657613,-26428.79,0.00011948,2]
[327206723,1715898657622,-2565.52,0.00011948,2]
[327206724,1715898657632,-2785.62,0.00011948,2]
[327206725,1715898657642,-500.0,0.00011949,2]
[327206726,1715898657652,-500.0,0.00011949,2]
[327206727,1715898657661,-500.0,0.00011949,2]
[327206728,1715898657670,-500.0,0.00011949,2]
[327206729,1715898657679,-500.0,0.00011949,2]
[327206730,1715898657688,-500.0,0.00011949,2]
[327206731,1715898657697,-500.0,0.00011949,2]
[327206732,1715898657706,-201.22,0.00011949,2]
[327206733,1715898657715,-520.03,0.00011949,2]
[327206734,1715898657725,-500.0,0.00011949,2]
[327206735,1715898657734,-500.0,0.00011949,2]
[327206736,1715898657744,-500.0,0.00011949,2]
[327206737,1715898657753,-527.01,0.00011949,2]
[327206738,1715898657762,-500.0,0.00011949,2]
[327206739,1715898657772,-1032.23,0.00011949,2]
[327206740,1715898657781,-500.0,0.00011949,2]
[327206741,1715898657791,-558.68,0.00011949,2]
[327206742,1715898657799,-500.0,0.00011949,2]
[327206743,1715898657809,-500.0,0.00011949,2]
[327206744,1715898657817,-500.0,0.00011949,2]
[327206745,1715898657826,-500.0,0.00011949,2]
[327206746,1715898657836,-500.0,0.00011949,2]
[327206747,1715898657845,-634.4,0.00011949,2]
[327206748,1715898657855,-652.89,0.00011949,2]
[327206749,1715898657864,-500.0,0.00011949,2]
[327206750,1715898657874,-500.0,0.00011949,2]
[327206751,1715898657883,-827.98,0.00011949,2]
[327206752,1715898657892,-827.98,0.00011949,2]
[327206753,1715898657902,-1101.54,0.00011949,2]
[327206754,1715898657911,-595.33,0.00011949,2]
[327206755,1715898657921,-708.68,0.00011949,2]
[327206756,1715898657930,-708.68,0.00011949,2]
[327206757,1715898657939,-880.22,0.00011949,2]
[327206758,1715898657948,-1040.32,0.00011949,2]
[327206759,1715898657958,-1186.98,0.00011949,2]
[327206760,1715898657967,-1186.98,0.00011949,2]
[327206761,1715898657976,-1064.41,0.00011949,2]
[327206762,1715898657986,-1005.97,0.00011949,2]
[327206763,1715898657995,-1064.41,0.00011949,2]
[327206764,1715898658004,-564.35,0.00011949,2]
[327206765,1715898658014,-564.35,0.00011949,2]
[327206766,1715898658023,-994.76,0.00011949,2]
[327206767,1715898658032,-1147.86,0.00011949,2]
[327206768,1715898658041,-1170.17,0.00011949,2]
[327206769,1715898658050,-619.53,0.00011949,2]
[327206770,1715898658059,-673.71,0.00011949,2]
[327206771,1715898658068,-906.15,0.00011949,2]
[327206772,1715898658077,-676.79,0.00011949,2]
[327206773,1715898658087,-721.59,0.00011949,2]
[327206774,1715898658096,-594.73,0.00011949,2]
[327206775,1715898658105,-793.2,0.00011949,2]
[327206776,1715898658115,-1329.35,0.00011949,2]
[327206777,1715898658124,-1301.06,0.00011949,2]
[327206778,1715898658134,-713.75,0.00011949,2]
[327206779,1715898658143,-953.53,0.00011949,2]
[327206780,1715898658154,-1231.03,0.00011949,2]
[327206781,1715898658163,-683.48,0.00011949,2]
[327206782,1715898658172,-683.48,0.00011949,2]
[327206783,1715898658181,-378.75415097,0.00011949,2]
[327206784,1715898658189,-625.83,0.00011949,2]
[327206785,1715898658199,-634.96,0.00011949,2]
[327206786,1715898658208,-560.23,0.00011949,2]
[327206787,1715898658217,-1051.92,0.00011949,2]
[327206788,1715898658227,-616.15,0.00011998,2]
[327206789,1715898658236,-610.35,0.00011998,2]
[327206790,1715898658246,-500.0,0.00011998,2]
[327206791,1715898658255,-500.0,0.00011998,2]
[327206792,1715898658264,-500.0,0.00011998,2]
[327206793,1715898658274,-500.0,0.00011998,2]
[327206794,1715898658283,-500.0,0.00011998,2]
[327206795,1715898658293,-500.0,0.00011998,2]
[327206796,1715898658303,-500.0,0.00011998,2]
[327206797,1715898658312,-500.0,0.00011998,2]
[327206798,1715898658322,-500.0,0.00011998,2]
[327206799,1715898658331,-500.0,0.00011998,2]
[327206800,1715898658341,-500.0,0.00011998,2]
[327206801,1715898658351,-500.0,0.00011998,2]
[327206802,1715898658360,-500.0,0.00011998,2]
[327206803,1715898658370,-500.0,0.00011998,2]
[327206804,1715898658379,-500.0,0.00011998,2]
[327206805,1715898658389,-500.0,0.00011998,2]
[327206806,1715898658399,-500.0,0.00011998,2]
[327206807,1715898658408,-500.0,0.00011998,2]
[327206808,1715898658418,-500.0,0.00011998,2]
[327206809,1715898658431,-500.0,0.00011998,2]
[327206810,1715898658440,-500.0,0.00011998,2]
[327206811,1715898658451,-552.35,0.00011998,2]
[327206812,1715898658461,-500.0,0.00011998,2]
[327206813,1715898658472,-500.0,0.00011998,2]
[327206814,1715898658482,-500.0,0.00011998,2]
[327206815,1715898658492,-500.0,0.00011998,2]
[327206816,1715898658504,-500.0,0.00011998,2]
[327206817,1715898658513,-1158.6,0.00011998,2]
[327206818,1715898658523,-524.84,0.00011998,2]
[327206819,1715898658533,-744.28,0.00011998,2]
[327206820,1715898658543,-500.0,0.00011998,2]
[327206821,1715898658552,-500.0,0.00011998,2]
[327206822,1715898658562,-500.0,0.00011998,2]
[327206823,1715898658572,-500.0,0.00011998,2]
[327206824,1715898658582,-500.0,0.00011998,2]
[327206825,1715898658592,-500.0,0.00011998,2]
[327206826,1715898658602,-500.0,0.00011998,2]
[327206827,1715898658612,-270.4,0.00011998,2]
[327206828,1715898658623,-500.0,0.00011998,2]
[327206829,1715898658633,-1002.92,0.00011998,2]
[327206830,1715898658643,-964.12,0.00011998,2]
[327206831,1715898658653,-500.0,0.00011998,2]
[327206832,1715898658663,-500.0,0.00011998,2]
[327206833,1715898658673,-500.0,0.00011998,2]
[327206834,1715898658682,-500.0,0.00011998,2]
[327206835,1715898658692,-649.6,0.00011998,2]
[327206836,1715898658702,-500.0,0.00011998,2]
[327206837,1715898658711,-343.49081706,0.00011998,2]
[327206838,1715898658721,-500.0,0.00011998,2]
[327206839,1715898658731,-763.3,0.00011998,2]
[327206840,1715898658740,-500.0,0.00011998,2]
[327206841,1715898658750,-157.051707,0.00011998,2]
[327206842,1715898658760,-649.26,0.00011998,2]
[327206843,1715898658770,-500.0,0.00011998,2]
[327206844,1715898658779,-567.37,0.00011998,2]
[327206845,1715898658789,-500.0,0.00011998,2]
[327206846,1715898658799,-638.43,0.00011998,2]
[327206847,1715898658809,-1573.5,0.00011998,2]
[327206848,1715898658819,-500.0,0.00011998,2]
[327206849,1715898658828,-637.27,0.00011998,2]
[327206850,1715898658838,-500.0,0.00011998,2]
[327206851,1715898658848,-1422.09,0.00011998,2]
[327206852,1715898658858,-1015.05,0.00011998,2]
[327206853,1715898658869,-500.0,0.00011998,2]
[327206854,1715898658878,-676.18,0.00011998,2]
[327206855,1715898658888,-676.98,0.00011998,2]
[327206856,1715898658898,-4044.06,0.00011998,2]
[327206857,1715898658907,-603.22,0.00011998,2]
[327206858,1715898658917,-500.0,0.00011998,2]
[327206859,1715898658926,-1409.4,0.00011998,2]
[327206860,1715898658935,-679.49,0.00011998,2]
[327206861,1715898658945,-500.0,0.00011998,2]
[327206862,1715898658954,-500.0,0.00011998,2]
[327206863,1715898658963,-1149.75,0.00011998,2]
[327206864,1715898658973,-1835.87,0.00011998,2]
[327206865,1715898658982,-500.0,0.00011998,2]
[327206866,1715898658991,-1159.57,0.00011998,2]
[327206867,1715898659000,-3522.13,0.00011998,2]
[327206868,1715898659010,-1119.18,0.00011998,2]
[327206869,1715898659019,-864.92,0.00011998,2]
[327206870,1715898659029,-1625.36,0.00011998,2]
[327206871,1715898659038,-500.0,0.00011998,2]
[327206872,1715898659047,-500.0,0.00011998,2]
[327206873,1715898659057,-1717.67,0.00011998,2]
[327206874,1715898659066,-1800.17,0.00011998,2]
[327206875,1715898659191,-500.0,0.00011998,2]
[327206876,1715898659202,-1789.55,0.00011998,2]
[327206877,1715898659212,-522.99,0.00011998,2]
[327206878,1715898659223,-1355.55,0.00011998,2]
[327206879,1715898659234,-1150.88,0.00011998,2]
[327206880,1715898659243,-13721.42,0.00011998,2]
[327206881,1715898659253,-186.68,0.00011998,2]
[327206882,1715898659262,-500.0,0.00011998,2]
[327206883,1715898659271,-521.2,0.00011998,2]
[327206884,1715898659281,-1341.08,0.00011998,2]
[327206885,1715898659291,-500.0,0.00011999,2]
[327206886,1715898659300,-252.46,0.00011999,2]
[327206887,1715898659310,-229.56,0.00011999,2]
[327206888,1715898659320,-520.03,0.00011999,2]
[327206889,1715898659330,-520.03,0.00011999,2]
[327206890,1715898659339,-520.03,0.00011999,2]
[327206891,1715898659348,-520.03,0.00011999,2]
[327206892,1715898659357,-520.03,0.00011999,2]
[327206893,1715898659367,-500.0,0.00011999,2]
[327206894,1715898659376,-527.01,0.00011999,2]
[327206895,1715898659385,-527.01,0.00011999,2]
[327206896,1715898659394,-527.01,0.00011999,2]
[327206897,1715898659405,-527.01,0.00011999,2]
[327206898,1715898659415,-527.14,0.00011999,2]
[327206899,1715898659424,-342.12,0.00011999,2]
[327206900,1715898659439,-1032.23,0.00011999,2]
[327206901,1715898659449,-1032.23,0.00011999,2]
[327206902,1715898659458,-1032.23,0.00011999,2]
[327206903,1715898659469,-1032.23,0.00011999,2]
[327206904,1715898659479,-1032.34,0.00011999,2]
[327206905,1715898659488,-500.0,0.00011999,2]
[327206906,1715898659498,-500.0,0.00011999,2]
[327206907,1715898659508,-428.95,0.00011999,2]
[327206908,1715898659519,-652.89,0.00011999,2]
[327206909,1715898659530,-652.89,0.00011999,2]
[327206910,1715898659539,-652.89,0.00011999,2]
[327206911,1715898659548,-652.89,0.00011999,2]
[327206912,1715898659559,-652.96,0.00011999,2]
[327206913,1715898659569,-500.0,0.00011999,2]
[327206914,1715898659578,-500.0,0.00011999,2]
[327206915,1715898659587,-500.0,0.00011999,2]
[327206916,1715898659597,-291.91,0.00011999,2]
[327206917,1715898659607,-500.0,0.00011999,2]
[327206918,1715898659617,-500.0,0.00011999,2]
[327206919,1715898659627,-500.0,0.00011999,2]
[327206920,1715898659636,-500.0,0.00011999,2]
[327206921,1715898659645,-457.19,0.00011999,2]
[327206922,1715898659656,-1101.54,0.00011999,2]
[327206923,1715898659666,-1101.54,0.00011999,2]
[327206924,1715898659676,-1101.54,0.00011999,2]
[327206925,1715898659685,-1101.54,0.00011999,2]
[327206926,1715898659695,-1101.54,0.00011999,2]
[327206927,1715898659704,-595.33,0.00011999,2]
[327206928,1715898659714,-595.33,0.00011999,2]
[327206929,1715898659723,-595.33,0.00011999,2]
[327206930,1715898659733,-595.33,0.00011999,2]
[327206931,1715898659742,-595.53,0.00011999,2]
[327206932,1715898659752,-880.22,0.00011999,2]
[327206933,1715898659762,-880.22,0.00011999,2]
[327206934,1715898659771,-880.22,0.00011999,2]
[327206935,1715898659780,-880.22,0.00011999,2]
[327206936,1715898659789,-880.44,0.00011999,2]
[327206937,1715898659800,-1040.32,0.00011999,2]
[327206938,1715898659809,-1040.32,0.00011999,2]
[327206939,1715898659819,-1040.32,0.00011999,2]
[327206940,1715898659828,-1040.32,0.00011999,2]
[327206941,1715898659838,-1040.55,0.00011999,2]
[327206942,1715898659847,-1005.97,0.00011999,2]
[327206943,1715898659856,-1005.97,0.00011999,2]
[327206944,1715898659866,-1005.97,0.00011999,2]
[327206945,1715898659875,-1005.97,0.00011999,2]
[327206946,1715898659885,-1006.04,0.00011999,2]
[327206947,1715898659894,-994.76,0.00011999,2]
[327206948,1715898659905,-994.76,0.00011999,2]
[327206949,1715898659915,-994.76,0.00011999,2]
[327206950,1715898659924,-994.76,0.00011999,2]
[327206951,1715898659934,-994.92,0.00011999,2]
[327206952,1715898659944,-1147.86,0.00011999,2]
[327206953,1715898659953,-1147.86,0.00011999,2]
[327206954,1715898659963,-1147.86,0.00011999,2]
[327206955,1715898659973,-1147.86,0.00011999,2]
[327206956,1715898659983,-1147.95,0.00011999,2]
[327206957,1715898659992,-1170.17,0.00011999,2]
[327206958,1715898660001,-1170.17,0.00011999,2]
[327206959,1715898660011,-1170.17,0.00011999,2]
[327206960,1715898660021,-1170.17,0.00011999,2]
[327206961,1715898660030,-1170.19,0.00011999,2]
[327206962,1715898660039,-619.53,0.00011999,2]
[327206963,1715898660049,-619.53,0.00011999,2]
[327206964,1715898660058,-619.53,0.00011999,2]
[327206965,1715898660067,-619.53,0.00011999,2]
[327206966,1715898660077,-619.73,0.00011999,2]
[327206967,1715898660087,-673.71,0.00011999,2]
[327206968,1715898660096,-673.71,0.00011999,2]
[327206969,1715898660105,-673.71,0.00011999,2]
[327206970,1715898660115,-673.71,0.00011999,2]
[327206971,1715898660124,-673.79,0.00011999,2]
[327206972,1715898660134,-906.15,0.00011999,2]
[327206973,1715898660143,-906.15,0.00011999,2]
[327206974,1715898660153,-906.15,0.00011999,2]
[327206975,1715898660162,-906.15,0.00011999,2]
[327206976,1715898660172,-906.32,0.00011999,2]
[327206977,1715898660181,-676.79,0.00011999,2]
[327206978,1715898660190,-676.79,0.00011999,2]
[327206979,1715898660200,-676.79,0.00011999,2]
[327206980,1715898660210,-676.79,0.00011999,2]
[327206981,1715898660219,-676.87,0.00011999,2]
[327206982,1715898660229,-721.59,0.00011999,2]
[327206983,1715898660239,-721.59,0.00011999,2]
[327206984,1715898660248,-721.59,0.00011999,2]
[327206985,1715898660258,-721.59,0.00011999,2]
[327206986,1715898660267,-721.61,0.00011999,2]
[327206987,1715898660277,-594.73,0.00011999,2]
[327206988,1715898660286,-594.73,0.00011999,2]
[327206989,1715898660295,-594.73,0.00011999,2]
[327206990,1715898660304,-594.73,0.00011999,2]
[327206991,1715898660313,-594.92,0.00011999,2]
[327206992,1715898660323,-793.2,0.00011999,2]
[327206993,1715898660333,-793.2,0.00011999,2]
[327206994,1715898660342,-793.2,0.00011999,2]
[327206995,1715898660351,-793.2,0.00011999,2]
[327206996,1715898660360,-793.22,0.00011999,2]
[327206997,1715898660370,-1329.35,0.00011999,2]
[327206998,1715898660379,-1329.35,0.00011999,2]
[327206999,1715898660389,-1329.35,0.00011999,2]
[327207000,1715898660399,-1329.35,0.00011999,2]
[327207001,1715898660408,-1329.46,0.00011999,2]
[327207002,1715898660417,-1301.06,0.00011999,2]
[327207003,1715898660429,-1301.06,0.00011999,2]
[327207004,1715898660439,-1301.06,0.00011999,2]
[327207005,1715898660449,-1301.06,0.00011999,2]
[327207006,1715898660458,-1301.1,0.00011999,2]
[327207007,1715898660469,-713.75,0.00011999,2]
[327207008,1715898660479,-713.75,0.00011999,2]
[327207009,1715898660488,-713.75,0.00011999,2]
[327207010,1715898660498,-713.75,0.00011999,2]
[327207011,1715898660509,-713.94,0.00011999,2]
[327207012,1715898660519,-953.53,0.00011999,2]
[327207013,1715898660529,-953.53,0.00011999,2]
[327207014,1715898660538,-953.53,0.00011999,2]
[327207015,1715898660547,-953.53,0.00011999,2]
[327207016,1715898660557,-953.54,0.00011999,2]
[327207017,1715898660566,-1231.03,0.00011999,2]
[327207018,1715898660576,-1231.03,0.00011999,2]
[327207019,1715898660586,-1231.03,0.00011999,2]
[327207020,1715898660595,-1231.03,0.00011999,2]
[327207021,1715898660604,-1231.1,0.00011999,2]
[327207022,1715898660614,-625.83,0.00011999,2]
[327207023,1715898660623,-625.83,0.00011999,2]
[327207024,1715898660633,-625.83,0.00011999,2]
[327207025,1715898660642,-625.83,0.00011999,2]
[327207026,1715898660653,-625.86,0.00011999,2]
[327207027,1715898660662,-634.96,0.00011999,2]
[327207028,1715898660671,-634.96,0.00011999,2]
[327207029,1715898660680,-634.96,0.00011999,2]
[327207030,1715898660690,-634.96,0.00011999,2]
[327207031,1715898660699,-635.1,0.00011999,2]
[327207032,1715898660708,-560.23,0.00011999,2]
[327207033,1715898660718,-560.23,0.00011999,2]
[327207034,1715898660728,-560.23,0.00011999,2]
[327207035,1715898660737,-560.23,0.00011999,2]
[327207036,1715898660748,-560.45,0.00011999,2]
[327207037,1715898660757,-1051.92,0.00011999,2]
[327207038,1715898660767,-1051.92,0.00011999,2]
[327207039,1715898660777,-1051.92,0.00011999,2]
[327207040,1715898660786,-1051.92,0.00011999,2]
[327207041,1715898660796,-1051.94,0.00011999,2]
[327207042,1715898660806,-2100.0,0.00012,2]
[327207043,1715898660816,-19624.9327953,0.00012,2]
[327207044,1715898660826,-183.79755461,0.00012,2]
[327207045,1715898660835,-155.0,0.00012,2]
[327207046,1715898660951,-155.0,0.00012,2]
[327207047,1715898660961,-300.0,0.00012,2]
[327207048,1715898660970,-172.58,0.00012033,2]
[327207049,1715898660979,-157.051707,0.00012098,2]
[327207050,1715898660989,-200.0,0.00012136,2]
[327207051,1715898660999,-500.0,0.00012167,2]
[327207052,1715898661008,-500.0,0.00012167,2]
[327207053,1715898661017,-319.42,0.00012167,2]
[327207054,1715898661026,-180.0,0.00012175,2]
[327207055,1715898661036,-157.051707,0.00012198,2]
[327207056,1715898661045,-157.051707,0.00012198,2]
[327207057,1715898661054,-577.5,0.00012199,2]
[327207058,1715898661064,-500.0,0.00012199,2]
[327207059,1715898661073,-500.0,0.00012199,2]
[327207060,1715898661082,-1776.01,0.00012199,2]
[327207061,1715898661091,-725.43,0.00012199,2]
[327207062,1715898661101,-26428.79,0.00012199,2]
[327207063,1715898661110,-2565.52,0.00012199,2]
[327207064,1715898661119,-2785.62,0.00012199,2]
[327207065,1715898661129,-2000.0,0.000122,2]
[327207066,1715898661138,-840.0,0.00012223,2]
[327207067,1715898661148,-321.0,0.0001223,2]
[327207068,1715898661164,-154.13,0.00012246,2]
[327207069,1715898661173,-157.051707,0.00012298,2]
[327207070,1715898661182,-157.051707,0.00012298,2]
[327207071,1715898661191,-174.44799409,0.00012324,2]
[327207072,1715898661201,-402.69254812,0.00012325,2]
[327207073,1715898661211,-500.0,0.00012325,2]
[327207074,1715898661221,-500.0,0.00012325,2]
[327207075,1715898661230,-500.0,0.00012325,2]
[327207076,1715898661239,-500.0,0.00012325,2]
[327207077,1715898661248,-500.0,0.00012325,2]
[327207078,1715898661258,-500.0,0.00012325,2]
[327207079,1715898661267,-500.0,0.00012325,2]
[327207080,1715898661277,-500.0,0.00012325,2]
[327207081,1715898661287,-500.0,0.00012325,2]
[327207082,1715898661296,-500.0,0.00012325,2]
[327207083,1715898661305,-500.0,0.00012325,2]
[327207084,1715898661315,-500.0,0.00012325,2]
[327207085,1715898661324,-500.0,0.00012325,2]
[327207086,1715898661333,-500.0,0.00012325,2]
[327207087,1715898661342,-500.0,0.00012325,2]
[327207088,1715898661351,-500.0,0.00012325,2]
[327207089,1715898661361,-500.0,0.00012325,2]
[327207090,1715898661371,-500.0,0.00012325,2]
[327207091,1715898661380,-500.0,0.00012325,2]
[327207092,1715898661391,-500.0,0.00012325,2]
[327207093,1715898661404,-500.0,0.00012325,2]
[327207094,1715898661413,-500.0,0.00012325,2]
[327207095,1715898661423,-500.0,0.00012325,2]
[327207096,1715898661436,-500.0,0.00012325,2]
[327207097,1715898661446,-500.0,0.00012325,2]
[327207098,1715898661455,-500.0,0.00012325,2]
[327207099,1715898661464,-500.0,0.00012325,2]
[327207100,1715898661474,-500.0,0.00012325,2]
[327207101,1715898661483,-500.0,0.00012325,2]
[327207102,1715898661492,-500.0,0.00012325,2]
[327207103,1715898661502,-500.0,0.00012325,2]
[327207104,1715898661514,-500.0,0.00012325,2]
[327207105,1715898661524,-500.0,0.00012325,2]
[327207106,1715898661534,-500.0,0.00012325,2]
[327207107,1715898661544,-500.0,0.00012325,2]
[327207108,1715898661553,-500.0,0.00012325,2]
[327207109,1715898661563,-500.0,0.00012325,2]
[327207110,1715898661574,-500.0,0.00012325,2]
[327207111,1715898661583,-500.0,0.00012325,2]
[327207112,1715898661594,-500.0,0.00012325,2]
[327207113,1715898661604,-500.0,0.00012325,2]
[327207114,1715898661614,-500.0,0.00012325,2]
[327207115,1715898661622,-500.0,0.00012325,2]
[327207116,1715898661631,-500.0,0.00012325,2]
[327207117,1715898661640,-500.0,0.00012325,2]
[327207118,1715898661651,-500.0,0.00012325,2]
[327207119,1715898661661,-500.0,0.00012325,2]
[327207120,1715898661669,-500.0,0.00012325,2]
[327207121,1715898661678,-500.0,0.00012325,2]
[327207122,1715898661687,-500.0,0.00012325,2]
[327207123,1715898661695,-500.0,0.00012325,2]
[327207124,1715898661704,-539.30791699,0.00012325,2]
[327207125,1715898661721,-500.0,0.00012325,2]
[327207126,1715898661741,-500.0,0.00012325,2]
[327207127,1715898661757,-500.0,0.00012325,2]
[327207128,1715898661778,-500.0,0.00012325,2]
[327207129,1715898661798,-500.0,0.00012325,2]
[327207130,1715898661817,-500.0,0.00012325,2]
[327207131,1715898661834,-500.0,0.00012325,2]
[327207132,1715898661848,-500.0,0.00012325,2]
[327207133,1715898661865,-500.0,0.00012325,2]
[327207134,1715898661883,-500.0,0.00012325,2]
[327207135,1715898661905,-509.85548209,0.00012325,2]
[327207136,1715898661917,-500.0,0.00012325,2]
[327207137,1715898661936,-500.0,0.00012325,2]
[327207138,1715898661949,-500.0,0.00012325,2]
[327207139,1715898661966,-500.0,0.00012325,2]
[327207140,1715898661980,-500.0,0.00012325,2]
[327207141,1715898661995,-500.0,0.00012325,2]
[327207142,1715898662010,-500.0,0.00012325,2]
[327207143,1715898662025,-500.0,0.00012325,2]
[327207144,1715898662041,-500.0,0.00012325,2]
[327207145,1715898662055,-542.76,0.00012325,2]
[327207146,1715898662070,-500.0,0.00012325,2]
[327207147,1715898662084,-500.0,0.00012325,2]
[327207148,1715898662099,-500.0,0.00012325,2]
[327207149,1715898662112,-500.0,0.00012325,2]
[327207150,1715898662126,-500.0,0.00012325,2]
[327207151,1715898662141,-500.0,0.00012325,2]
[327207152,1715898662158,-500.0,0.00012325,2]
[327207153,1715898662172,-500.0,0.00012325,2]
[327207154,1715898662186,-500.0,0.00012325,2]
[327207155,1715898662201,-500.0,0.00012325,2]
[327207156,1715898662215,-500.0,0.00012325,2]
[327207157,1715898662231,-500.0,0.00012325,2]
[327207158,1715898662246,-500.0,0.00012325,2]
[327207159,1715898662261,-500.0,0.00012325,2]
[327207160,1715898662278,-500.0,0.00012325,2]
[327207161,1715898662294,-500.0,0.00012325,2]
[327207162,1715898662308,-500.0,0.00012325,2]
[327207163,1715898662323,-562.36,0.00012325,2]
[327207164,1715898662338,-500.0,0.00012325,2]
[327207165,1715898662353,-521.57375453,0.00012325,2]
[327207166,1715898662368,-500.0,0.00012325,2]
[327207167,1715898662384,-191.60789667,0.00012325,2]
[327207168,1715898662399,-500.0,0.00012325,2]
[327207169,1715898662418,-500.0,0.00012325,2]
[327207170,1715898662438,-500.0,0.00012325,2]
[327207171,1715898662452,-500.0,0.00012325,2]
[327207172,1715898662468,-547.68,0.00012325,2]
[327207173,1715898662483,-442.48033187,0.00012325,2]
[327207174,1715898662498,-500.0,0.00012325,2]
[327207175,1715898662514,-527.81684866,0.00012325,2]
[327207176,1715898662530,-500.0,0.00012325,2]
[327207177,1715898662555,-526.89665882,0.00012325,2]
[327207178,1715898662573,-566.59,0.00012325,2]
[327207179,1715898662589,-557.57592882,0.00012325,2]
[327207180,1715898662604,-500.0,0.00012325,2]
[327207181,1715898662619,-500.0,0.00012325,2]
[327207182,1715898662633,-500.0,0.00012325,2]
[327207183,1715898662647,-797.42,0.00012325,2]
[327207184,1715898662665,-500.0,0.00012325,2]
[327207185,1715898662679,-500.0,0.00012325,2]
[327207186,1715898662694,-670.13,0.00012325,2]
[327207187,1715898662709,-503.40021979,0.00012325,2]
[327207188,1715898662724,-651.18,0.00012325,2]
[327207189,1715898662738,-500.0,0.00012325,2]
[327207190,1715898662752,-500.0,0.00012325,2]
[327207191,1715898662767,-583.92386657,0.00012325,2]
[327207192,1715898662783,-881.7,0.00012325,2]
[327207193,1715898662798,-500.0,0.00012325,2]
[327207194,1715898662812,-500.0,0.00012325,2]
[327207195,1715898662822,-500.0,0.00012325,2]
[327207196,1715898662833,-500.0,0.00012325,2]
[327207197,1715898662844,-500.0,0.00012325,2]
[327207198,1715898662854,-500.0,0.00012325,2]
[327207199,1715898662865,-986.42,0.00012325,2]
[327207200,1715898662874,-509.54883216,0.00012325,2]